bitfinex/quotes_ETHUSD_20260209
["timestamp","ask_amount","ask_price","bid_price","bid_amount"]
[1770631734799,2.12335387,2046.1,2045.0,1.22245149]
[1770631735024,0.90147492,2046.4,2045.1,0.99431409]
[1770631735385,1.22171724,2046.3,2045.2,1.22237433]
[1770631735682,2.12314707,2046.4,2045.3,1.06783629]
[1770631735984,2.12314707,2046.4,2045.3,0.99431409]
[1770631736172,1.22167215,2046.4,2045.4,3.417]
[1770631736373,1.2216228,2046.5,2045.5,1.06783629]
[1770631736808,1.2216228,2046.5,2045.5,0.99431409]
[1770631737394,1.2216228,2046.5,2045.5,1.06783629]
[1770631739089,5.78773339,2046.6,2045.6,1.22213531]
[1770631739598,0.90147492,2046.5,2045.6,1.22213531]
[1770631741330,1.22165644,2046.5,2045.6,1.22213531]
[1770631742325,0.90147492,2047.0,2045.8,1.06783629]
[1770631742493,2.12281865,2047.0,2045.8,1.06783629]
[1770631742952,0.002,2046.3,2045.8,1.06783629]
[1770631743094,2.12281865,2047.0,2045.8,1.06783629]
[1770631743424,0.002,2046.5,2046.1,0.0735222]
[1770631743930,0.002,2046.5,2046.1,0.99431409]
[1770631744502,0.002,2046.5,2045.9,1.2219561]
[1770631745805,0.002,2046.5,2045.8,1.22197857]
[1770631746005,0.90347492,2046.5,2045.8,1.22196357]
[1770631746202,0.90347492,2046.5,2045.7,1.22203461]
[1770631746527,0.90347492,2046.5,2045.8,1.22200676]
[1770631747521,0.90347492,2046.5,2045.7,1.22204017]
[1770631747730,1.22165754,2046.4,2045.5,1.22219506]
[1770631748738,2.12313246,2046.4,2045.5,1.22219506]
[1770631748916,0.90147492,2046.3,2045.5,1.22219506]
[1770631749909,1.22177695,2046.2,2045.4,4.88878024]
[1770631750725,2.12325187,2046.2,2045.4,1.22225481]
[1770631751111,0.90147492,2046.1,2045.3,4.63827221]
[1770631752011,2.12335684,2046.1,2045.3,4.63827221]
[1770631752204,1.2218004,2046.2,2045.3,4.63827221]
[1770631752531,1.2217627,2046.3,2045.3,5.7061085]
[1770631752723,2.12323762,2046.3,2045.3,4.71179441]
[1770631754431,0.90147492,2046.2,2045.3,4.63827221]
[1770631756036,1.2217627,2046.3,2045.4,1.01357091]
[1770631756246,1.2217627,2046.3,2045.5,0.001]
[1770631756838,4.88671805,2046.4,2045.5,1.22319506]
[1770631757514,5.79812479,2046.4,2045.5,1.22319506]
[1770631757715,0.91140674,2046.3,2045.5,0.001]
[1770631759040,1.22177695,2046.2,2045.5,0.001]
[1770631760327,2.13316446,2046.3,2045.5,0.001]
[1770631761844,0.91340674,2046.5,2045.5,0.97745326]
[1770631763743,0.91340674,2046.5,2045.5,0.001]
[1770631763937,0.91140674,2046.3,2045.5,0.001]
[1770631765520,0.002,2046.5,2045.6,1.04997546]
[1770631765946,0.002,2046.5,2045.7,2.19852883]
[1770631766825,0.002,2046.5,2045.8,0.97645326]
[1770631770223,0.002,2046.5,2046.0,0.97645326]
[1770631770423,2.13264654,2047.1,2046.1,1.04997546]
[1770631770651,2.13264654,2047.1,2046.1,0.97645326]
[1770631770851,1.22135912,2046.9,2046.0,4.63785007]
[1770631771056,0.91140674,2046.8,2046.0,4.63785007]
[1770631771452,1.22135912,2046.9,2046.1,0.97645326]
[1770631771633,2.13275239,2047.0,2046.1,0.97645326]
[1770631772151,1.22134565,2047.0,2046.1,0.97645326]
[1770631772338,0.002,2046.3,2046.1,0.97645326]
[1770631772550,0.002,2046.5,2046.1,0.97645326]
[1770631772858,0.002,2046.5,2046.2,1.22177695]
[1770631773025,1.2212398,2047.1,2046.3,0.97645326]
[1770631773459,2.13264654,2047.1,2046.2,1.22177695]
[1770631774945,2.13276586,2046.9,2046.1,1.22180243]
[1770631775947,2.13276586,2046.9,2046.1,2.19825569]
[1770631776733,1.22134156,2047.0,2046.1,2.19825569]
[1770631777344,4.88511206,2047.1,2046.2,0.97645326]
[1770631777545,5.7965188,2047.1,2046.2,0.97645326]
[1770631778064,2.13264654,2047.1,2046.2,0.97645326]
[1770631778557,1.2212398,2047.1,2046.2,0.97645326]
[1770631779459,1.2212398,2047.1,2046.4,2.1981108]
[1770631783762,1.22122806,2047.2,2046.4,2.1981108]
[1770631784341,2.1326348,2047.2,2046.4,2.1981108]
[1770631784543,2.1326348,2047.2,2046.4,1.22165754]
[1770631785062,0.91140674,2047.1,2046.4,1.22165754]
[1770631785264,1.22122806,2047.2,2046.4,2.18006223]
[1770631785460,0.25524778,2047.3,2046.5,0.95840469]
[1770631785761,2.41463636,2047.3,2046.5,0.95840469]
[1770631785966,0.93821979,2047.2,2046.4,1.22165754]
[1770631786839,1.2212398,2047.1,2046.4,2.18006223]
[1770631787261,2.15945959,2047.1,2046.4,1.22165754]
[1770631787461,0.93821979,2047.0,2046.3,1.2217138]
[1770631788870,2.15957723,2047.0,2046.3,1.2217138]
[1770631789869,2.15957723,2047.0,2046.3,1.2227138]
[1770631790367,1.22129738,2047.1,2046.4,0.0735222]
[1770631790571,1.22129738,2047.1,2046.4,0.95840469]
[1770631791147,4.88486562,2047.2,2046.5,1.22159784]
[1770631791454,0.93821979,2047.1,2046.4,1.22160867]
[1770631792138,0.93821979,2047.1,2046.3,0.001]
[1770631792339,0.93821979,2047.1,2046.4,1.22165601]
[1770631793473,2.15949502,2047.1,2046.3,4.88774611]
[1770631793844,0.93821979,2047.0,2046.3,1.22271724]
[1770631794549,0.93821979,2047.0,2046.3,0.001]
[1770631795650,0.93821979,2046.8,2046.3,0.001]
[1770631797777,1.22135912,2046.9,2046.3,0.001]
[1770631798260,2.15956123,2047.0,2046.3,0.001]
[1770631799882,2.15939993,2047.2,2046.3,1.22271724]
[1770631800257,1.47638327,2047.3,2046.4,4.74840469]
[1770631800574,1.47638327,2047.3,2046.4,3.79]
[1770631800575,0.93821979,2047.2,2046.4,3.79]
[1770631801588,0.25524778,2047.3,2046.5,0.95840469]
[1770631801797,1.47637539,2047.3,2046.5,0.95840469]
[1770631802093,1.47637539,2047.3,2046.6,1.22153816]
[1770631805900,0.25524778,2047.3,2046.6,2.17994285]
[1770631806269,1.47637211,2047.3,2046.6,2.17994285]
[1770631806699,0.1375526,2047.4,2046.9,0.95840469]
[1770631807001,0.93821979,2047.3,2046.6,4.63553816]
[1770631807409,0.1375526,2047.4,2046.6,5.59394285]
[1770631807582,0.1375526,2047.4,2046.6,5.59494285]
[1770631808170,0.1375526,2047.4,2046.7,0.95840469]
[1770631808901,0.1375526,2047.4,2047.0,1.22129946]
[1770631809081,0.1375526,2047.4,2047.0,2.17970415]
[1770631809419,0.1375526,2047.4,2047.0,1.22129946]
[1770631810306,0.93821979,2048.0,2047.1,0.95840469]
[1770631810593,2.15884204,2048.2,2047.1,0.95840469]
[1770631810764,2.15884204,2048.2,2047.0,1.22129946]
[1770631810765,1.22062225,2048.2,2047.3,0.95840469]
[1770631810971,1.22070312,2048.0,2047.3,1.2211205]
[1770631811173,2.15886636,2048.1,2047.3,1.2211205]
[1770631812169,0.93821979,2048.0,2046.6,0.001]
[1770631812365,0.93821979,2048.0,2046.7,1.22145403]
[1770631812366,0.93821979,2047.6,2046.7,1.22145403]
[1770631812585,0.93821979,2047.6,2046.7,1.22143377]
[1770631812790,0.93821979,2047.6,2046.6,1.22250938]
[1770631812985,0.93821979,2047.4,2046.6,0.001]
[1770631814497,1.22100122,2047.5,2046.6,0.95940469]
[1770631814879,0.93821979,2048.0,2046.6,0.95940469]
[1770631815086,1.22076273,2047.9,2046.8,0.95840469]
[1770631815281,4.88236977,2048.2,2046.8,1.03192689]
[1770631815282,1.22068994,2048.1,2046.8,1.03192689]
[1770631815672,2.21174513,2048.2,2047.0,0.98303917]
[1770631815868,2.21174513,2048.2,2047.2,0.98303917]
[1770631816366,8.29619027,2048.3,2047.2,0.98303917]
[1770631816367,4.63456427,2048.3,2047.2,0.98303917]
[1770631816567,1.22051229,2048.4,2047.2,1.05656137]
[1770631816770,1.22051229,2048.4,2047.2,0.98303917]
[1770631816966,2.21158199,2048.5,2047.2,1.05656137]
[1770631817180,2.21158199,2048.5,2047.4,0.98303917]
[1770631818991,2.2115282,2048.5,2047.4,0.98303917]
[1770631819307,2.2115282,2048.5,2047.5,1.22100122]
[1770631820281,2.2115282,2048.5,2047.5,2.18203994]
[1770631820806,2.2115282,2048.5,2047.5,1.22100122]
[1770631820807,0.002,2048.2,2047.5,1.22100122]
[1770631821306,0.99053311,2048.1,2047.1,1.22120368]
[1770631821598,0.99053311,2048.1,2047.2,1.22117739]
[1770631821808,0.99053311,2048.1,2046.9,8.29833842]
[1770631821976,0.99053311,2048.6,2047.6,0.96103872]
[1770631822182,0.99053311,2048.5,2047.4,0.96103872]
[1770631823079,1.22046475,2048.4,2047.5,1.22100122]
[1770631824208,2.21097434,2048.5,2047.5,2.18203994]
[1770631824408,2.21097434,2048.5,2047.6,0.96103872]
[1770631825686,0.99053311,2048.4,2047.5,1.22096716]
[1770631825931,0.99053311,2048.4,2047.3,1.22111851]
[1770631826202,0.99053311,2048.4,2047.4,1.22103006]
[1770631826383,0.99053311,2048.4,2047.5,1.2209769]
[1770631826584,0.99053311,2048.4,2047.5,1.22096229]
[1770631826992,0.99053311,2048.4,2047.4,4.88408806]
[1770631826993,0.99053311,2048.4,2047.6,1.22092339]
[1770631827392,0.99053311,2048.4,2047.5,1.22097306]
[1770631828012,2.21105744,2048.3,2047.4,4.88412483]
[1770631829819,1.22032721,2048.7,2047.7,0.96103872]
[1770631830011,2.21086032,2048.7,2047.8,1.22082234]
[1770631831214,0.99053311,2049.3,2048.0,0.96103872]
[1770631831586,0.99053311,2049.3,2047.8,1.22082234]
[1770631831587,1.06405531,2049.3,2047.8,1.22082234]
[1770631832115,0.99053311,2049.1,2047.8,1.22082234]
[1770631833410,0.99253311,2049.1,2047.8,1.22082234]
[1770631834414,0.99053311,2048.9,2047.8,2.18186106]
[1770631834599,0.99053311,2048.9,2047.9,0.96103872]
[1770631835412,0.99053311,2048.9,2047.7,5.59589076]
[1770631836595,0.99053311,2048.7,2047.7,5.59589076]
[1770631837615,0.99053311,2048.7,2047.7,0.001]
[1770631838802,8.29290589,2048.9,2047.7,0.001]
[1770631838803,4.88045445,2049.0,2047.9,0.0735222]
[1770631839117,4.88045445,2049.0,2047.7,0.001]
[1770631839118,0.99053311,2048.9,2047.7,0.001]
[1770631840418,0.99053311,2048.9,2047.7,0.96203872]
[1770631841035,0.99053311,2048.7,2047.8,1.22082234]
[1770631841339,0.99053311,2048.7,2047.7,2.18287609]
[1770631843709,2.21087871,2048.6,2047.7,2.18287609]
[1770631844823,2.21087871,2048.6,2047.7,0.001]
[1770631844824,0.99053311,2048.5,2047.7,0.001]
[1770631845132,0.99053311,2048.5,2046.8,0.001]
[1770631845133,0.99053311,2048.1,2046.9,1.22133497]
[1770631845717,0.94366167,2047.9,2046.8,0.001]
[1770631846824,1.01718387,2047.9,2047.7,0.001]
[1770631847021,1.01718387,2047.9,2046.8,0.001]
[1770631847611,0.94366167,2047.7,2046.8,0.001]
[1770631847809,0.94366167,2047.5,2046.8,0.001]
[1770631849219,0.94366167,2047.5,2046.6,0.001]
[1770631849220,12.11845638,2047.5,2046.6,0.001]
[1770631849428,0.94366167,2047.4,2046.6,0.001]
[1770631850224,1.2211205,2047.3,2046.6,0.001]
[1770631850427,1.2211205,2047.3,2046.6,0.90568009]
[1770631850832,2.16478217,2047.3,2046.6,0.001]
[1770631851004,0.94366167,2047.2,2046.6,0.001]
[1770631851640,1.2211205,2047.3,2046.6,0.001]
[1770631852009,0.94366167,2047.2,2046.6,0.001]
[1770631852403,1.2212398,2047.1,2046.6,0.001]
[1770631854036,0.94366167,2047.4,2046.6,0.001]
[1770631854209,1.22088196,2047.7,2046.6,0.001]
[1770631854210,0.94366167,2047.6,2046.6,0.001]
[1770631856035,1.22100122,2047.5,2046.6,0.90568009]
[1770631858442,1.22100122,2047.5,2046.7,1.22147847]
[1770631859010,0.94366167,2047.4,2046.6,0.001]
[1770631859706,0.94366167,2047.4,2046.3,0.001]
[1770631859707,0.94366167,2047.3,2046.3,0.001]
[1770631859908,0.94366167,2046.9,2046.3,0.001]
[1770631860105,0.94366167,2046.9,2045.7,2.12774533]
[1770631860340,0.94366167,2046.9,2045.7,1.22306524]
[1770631860634,1.2214188,2046.8,2046.5,0.001]
[1770631860827,0.94366167,2046.7,2045.7,0.001]
[1770631862734,1.22153816,2046.6,2045.7,0.001]
[1770631862935,1.22153816,2046.6,2045.7,0.90568009]
[1770631863435,2.16502079,2046.9,2045.7,0.90568009]
[1770631863609,0.94366167,2046.8,2045.7,0.90568009]
[1770631865216,2.16514014,2046.7,2045.8,1.22201583]
[1770631866940,1.22147847,2046.7,2045.8,2.12669592]
[1770631867127,5.82888755,2047.0,2045.9,0.90468009]
[1770631867128,1.22135912,2046.9,2045.9,0.90468009]
[1770631867332,1.22135912,2046.9,2046.0,2.12657647]
[1770631869338,1.22135912,2046.9,2045.9,1.22192549]
[1770631869339,0.94366167,2046.8,2045.9,1.22192549]
[1770631870240,0.94366167,2046.8,2046.0,1.22189462]
[1770631870425,0.94366167,2046.8,2045.9,1.22190888]
[1770631870624,1.22135912,2046.9,2046.1,0.90468009]
[1770631871947,4.88543651,2047.0,2046.2,1.22177695]
[1770631872345,4.88543651,2047.0,2046.1,2.12647104]
[1770631872730,0.002,2046.6,2046.1,2.12647104]
[1770631875926,0.002,2046.6,2046.2,0.99806653]
[1770631876430,0.002,2046.6,2046.3,1.22171724]
[1770631876615,0.002,2046.6,2046.2,0.99806653]
[1770631876828,0.002,2046.6,2046.1,1.22183512]
[1770631877147,0.002,2046.6,2046.2,2.21984162]
[1770631880162,0.002,2046.6,2046.1,4.88732069]
[1770631880163,0.002,2046.6,2046.0,0.001]
[1770631880453,0.002,2046.6,2046.1,1.22183447]
[1770631880820,0.002,2046.6,2046.0,1.22284944]
[1770631881336,0.002,2046.6,2046.0,0.001]
[1770631882660,0.002,2046.6,2046.0,0.99778427]
[1770631882825,0.002,2046.6,2046.1,0.0735222]
[1770631883027,0.002,2046.6,2046.1,1.07030647]
[1770631883443,0.002,2046.6,2046.2,2.21856122]
[1770631883954,0.002,2046.6,2046.2,1.22177695]
[1770631884549,0.002,2046.6,2046.1,1.2218092]
[1770631885653,0.002,2046.5,2046.1,0.99678427]
[1770631885833,0.002,2046.5,2046.0,0.001]
[1770631887137,0.002,2046.5,2046.0,0.99778427]
[1770631887345,0.002,2046.6,2046.3,0.99678427]
[1770631887647,0.92155177,2047.3,2046.4,1.22165754]
[1770631888437,0.002,2047.3,2046.4,1.22165754]
[1770631888639,0.002,2047.3,2046.7,0.99678427]
[1770631888839,0.002,2047.3,2046.6,0.99678427]
[1770631889663,0.002,2047.3,2046.7,1.22147847]
[1770631891034,0.002,2047.3,2046.8,0.99678427]
[1770631891737,0.002,2047.3,2046.9,1.22135912]
[1770631892981,0.002,2047.3,2046.9,2.21814339]
[1770631893674,0.002,2047.3,2046.7,1.22147847]
[1770631896357,0.002,2047.3,2046.6,5.88292452]
[1770631898453,0.002,2047.3,2046.7,0.99678427]
[1770631899039,0.002,2047.1,2046.7,0.99678427]
[1770631900755,0.002,2047.1,2046.8,1.2214188]
[1770631902679,0.002,2047.3,2046.9,0.0735222]
[1770631902978,0.002,2047.5,2047.1,1.2212398]
[1770631904371,0.002,2047.5,2047.0,1.22126062]
[1770631905668,0.90296317,2047.5,2046.7,1.22143074]
[1770631907669,0.90096317,2047.4,2046.7,1.22143074]
[1770631909375,0.002,2047.5,2046.7,1.22143074]
[1770631910080,0.90296317,2047.5,2046.7,1.22143074]
[1770631911563,0.90296317,2047.5,2046.6,3.414]
[1770631911763,0.90296317,2047.5,2046.6,4.63553675]
[1770631911963,0.90096317,2047.3,2046.6,4.63553675]
[1770631912274,0.90096317,2047.3,2046.8,0.001]
[1770631912474,0.90296317,2047.3,2046.8,0.001]
[1770631913772,0.90296317,2047.3,2046.5,0.001]
[1770631913975,0.90096317,2047.1,2046.5,0.001]
[1770631916176,0.90096317,2046.9,2046.5,0.001]
[1770631917561,0.90096317,2046.9,2046.3,0.001]
[1770631918175,1.2214188,2046.8,2046.3,0.001]
[1770631918492,2.12236473,2046.9,2046.3,0.001]
[1770631919175,0.90096317,2046.9,2046.3,0.001]
[1770631919379,2.12232496,2046.9,2046.3,0.001]
[1770631919888,0.90096317,2046.9,2046.3,0.001]
[1770631920088,2.12232625,2046.9,2046.3,0.001]
[1770631920289,0.90096317,2047.1,2046.3,0.001]
[1770631922356,1.22129946,2047.0,2046.3,0.001]
[1770631922553,2.12226263,2047.0,2046.3,0.001]
[1770631923897,0.90096317,2047.0,2046.3,0.001]
[1770631924594,1.22131971,2047.0,2046.3,1.22271724]
[1770631924761,1.22128521,2047.1,2046.3,1.22271724]
[1770631924962,1.22128521,2047.1,2046.5,0.001]
[1770631925183,2.12224838,2047.1,2046.5,0.001]
[1770631925872,2.1221824,2047.2,2046.5,0.001]
[1770631926464,2.12216029,2047.2,2046.5,0.001]
[1770631928977,0.90096317,2047.1,2046.5,0.001]
[1770631931998,2.12221884,2047.1,2046.5,0.001]
[1770631932195,0.90096317,2047.1,2046.5,0.001]
[1770631932375,0.90096317,2047.2,2046.5,0.001]
[1770631934175,0.90096317,2047.0,2046.5,0.001]
[1770631935495,1.22121356,2047.2,2046.5,0.99685258]
[1770631935796,0.97626676,2047.2,2046.5,0.99685258]
[1770631937285,0.97626676,2047.2,2046.7,0.001]
[1770631937595,2.19745579,2047.2,2046.7,0.001]
[1770631940678,0.98989553,2047.1,2046.7,0.001]
[1770631941789,0.98989553,2047.1,2046.5,0.001]
[1770631942891,2.21119499,2047.0,2046.5,0.001]
[1770631943092,0.98989553,2047.0,2046.5,0.001]
[1770631943480,1.22128095,2047.1,2046.5,0.001]
[1770631943677,2.21109874,2047.2,2046.5,0.001]
[1770631943873,1.22120321,2047.2,2046.5,0.92609138]
[1770631944800,5.87638985,2047.3,2046.6,1.22153816]
[1770631945298,2.21301603,2047.3,2046.6,1.22153816]
[1770631945684,2.21301603,2047.3,2046.6,2.14662954]
[1770631945874,0.98989553,2047.2,2046.5,1.22255238]
[1770631947577,0.98989553,2047.0,2046.5,0.001]
[1770631949513,1.2212398,2047.1,2046.5,0.001]
[1770631950205,2.21113533,2047.1,2046.5,0.001]
[1770631950383,1.2212398,2047.1,2046.7,0.001]
[1770631950579,0.002,2046.9,2046.7,0.001]
[1770631952095,1.22335912,2046.9,2046.7,0.001]
[1770631952295,0.002,2046.9,2046.7,0.001]
[1770631962412,9.59867228,2046.9,2046.5,0.001]
[1770631962906,0.99189553,2046.9,2046.5,0.001]
[1770631963827,0.002,2046.7,2046.5,0.001]
[1770631971715,0.95158629,2046.7,2046.3,0.001]
[1770631971909,0.94958629,2046.5,2046.0,0.001]
[1770631972936,0.94958629,2046.3,2046.0,0.001]
[1770631973232,0.94958629,2046.3,2045.8,0.001]
[1770631973428,0.94958629,2046.1,2045.8,0.001]
[1770631973634,0.94958629,2046.1,2045.7,0.001]
[1770631973635,1.22189638,2046.0,2045.7,0.001]
[1770631974139,4.63675842,2046.3,2045.7,0.001]
[1770631974343,4.63675842,2046.3,2045.7,0.90487239]
[1770631974741,3.415,2046.3,2045.7,0.90487239]
[1770631974941,1.22350529,2046.7,2045.8,0.90387239]
[1770631975251,2.17309158,2046.7,2045.8,0.90387239]
[1770631975554,10.77986833,2046.7,2045.8,0.90387239]
[1770631975712,0.94958629,2046.6,2045.9,1.2219561]
[1770631976116,0.94958629,2046.6,2045.9,2.12682849]
[1770631976343,0.002,2046.5,2045.9,2.12682849]
[1770631976549,0.002,2046.5,2046.0,0.90387239]
[1770631978645,0.002,2046.5,2045.9,1.2229561]
[1770631978646,0.002,2046.5,2046.1,2.12570905]
[1770631978944,0.002,2046.5,2046.2,0.90387239]
[1770631980047,0.002,2046.5,2046.1,1.22183666]
[1770631980243,0.002,2046.5,2046.0,1.22184813]
[1770631980626,0.002,2046.5,2045.9,1.2229561]
[1770631982024,0.95158629,2046.5,2045.9,1.2229561]
[1770631982225,0.95158629,2046.5,2045.9,0.001]
[1770631982735,0.002,2046.5,2045.9,0.90487239]
[1770631984840,0.002,2046.5,2046.0,2.12576877]
[1770631987754,0.25725589,2046.9,2046.0,1.22189638]
[1770631987962,0.002,2047.3,2046.4,0.90387239]
[1770631988340,0.002,2047.3,2046.5,0.90387239]
[1770631989562,0.002,2046.7,2046.6,0.97739459]
[1770631989758,0.002,2047.3,2046.6,0.97739459]
[1770631990837,0.002,2047.3,2046.8,0.90387239]
[1770631991042,0.002,2047.3,2046.7,1.22147847]
[1770631991435,0.002,2047.3,2046.7,2.12535086]
[1770631991845,0.002,2047.3,2046.8,0.90387239]
[1770631992151,0.002,2047.3,2046.7,1.22147847]
[1770631994337,0.002,2047.3,2046.7,2.12535086]
[1770631994943,0.002,2047.3,2046.8,0.90387239]
[1770631996567,0.002,2047.3,2046.8,0.91021618]
[1770631996773,0.002,2047.3,2047.2,0.91021618]
[1770631997146,0.002,2047.8,2047.2,0.91021618]
[1770631999365,0.002,2047.8,2047.4,0.97264876]
[1770632001285,0.002,2047.8,2047.5,1.22100122]
[1770632001479,0.97110949,2047.8,2047.4,1.22102817]
[1770632001944,0.97110949,2047.8,2047.1,4.88473627]
[1770632002141,0.97110949,2047.8,2047.2,1.22117821]
[1770632002566,0.97110949,2047.8,2047.3,1.22111805]
[1770632007250,0.97110949,2047.8,2047.1,1.2212398]
[1770632007768,0.96910949,2047.7,2047.1,1.2212398]
[1770632008077,0.96910949,2047.7,2047.0,1.22129594]
[1770632008981,1.22282405,2047.8,2047.1,0.97264876]
[1770632008982,0.002,2047.8,2047.1,0.97264876]
[1770632009347,0.002,2047.8,2047.2,2.1938289]
[1770632012148,0.002,2047.8,2047.3,0.97264876]
[1770632013473,0.002,2047.8,2047.4,1.22106085]
[1770632013860,0.002,2047.8,2047.4,1.22206085]
[1770632014262,0.002,2047.6,2047.4,2.19470961]
[1770632014454,0.002,2047.6,2047.4,1.22206085]
[1770632014776,0.002,2047.6,2047.4,2.19470961]
[1770632014971,0.002,2047.6,2047.4,1.22206085]
[1770632015573,0.002,2047.6,2047.4,0.001]
[1770632017481,0.002,2047.6,2047.4,0.97364876]
[1770632017670,0.002,2047.6,2047.5,1.22100122]
[1770632021487,0.002,2047.6,2047.4,1.22201387]
[1770632022006,0.002,2047.6,2047.4,0.001]
[1770632024689,0.002,2047.8,2047.4,0.001]
[1770632025687,0.9140697,2047.8,2047.4,0.001]
[1770632027006,0.9120697,2047.7,2047.4,0.001]
[1770632027203,0.9120697,2047.7,2047.2,0.001]
[1770632027379,0.002,2047.4,2047.2,0.001]
[1770632027704,0.9140697,2047.4,2046.9,1.22135516]
[1770632027910,0.9140697,2047.4,2046.9,0.002]
[1770632031280,0.9120697,2047.3,2046.9,0.002]
[1770632032126,0.9120697,2047.3,2046.5,1.2225655]
[1770632032314,0.9120697,2047.1,2046.5,0.001]
[1770632032886,0.002,2047.4,2046.5,0.96830376]
[1770632033105,0.002,2047.4,2046.6,1.04082596]
[1770632033887,0.002,2047.4,2046.6,0.96730376]
[1770632034613,0.002,2047.4,2046.7,1.22147847]
[1770632036415,0.9140697,2047.4,2046.7,1.22147847]
[1770632037218,0.9140697,2047.4,2046.7,0.96730376]
[1770632037609,0.002,2047.4,2046.7,0.96730376]
[1770632038921,0.9140697,2047.4,2046.7,0.96730376]
[1770632039510,0.9140697,2047.4,2046.8,1.2214188]
[1770632039816,0.9140697,2047.4,2046.9,0.001]
[1770632040416,0.002,2047.4,2046.9,0.001]
[1770632040589,0.002,2047.4,2046.9,0.96830376]
[1770632041418,0.002,2047.4,2047.0,1.22129946]
[1770632043021,0.002,2047.4,2046.7,1.22145613]
[1770632043022,0.9120697,2047.1,2046.7,1.22145613]
[1770632043394,0.9120697,2047.1,2046.5,0.001]
[1770632044604,0.9120697,2046.9,2046.5,0.001]
[1770632046396,0.9120697,2046.8,2046.3,0.001]
[1770632048007,0.9120697,2046.8,2046.0,0.001]
[1770632048415,0.9120697,2046.6,2046.0,0.001]
[1770632049502,2.13352984,2046.8,2046.0,0.001]
[1770632049811,4.88567076,2046.9,2046.0,0.96830376]
[1770632049812,0.9120697,2046.9,2046.0,0.96830376]
[1770632050013,0.9120697,2046.9,2046.0,0.001]
[1770632050216,0.9120697,2046.6,2045.7,0.001]
[1770632050415,0.9120697,2046.4,2045.7,0.001]
[1770632052426,0.9120697,2046.2,2045.5,0.001]
[1770632054006,0.9120697,2046.2,2046.0,0.001]
[1770632054318,1.22183666,2046.1,2045.5,0.001]
[1770632054503,0.9120697,2046.0,2045.5,0.001]
[1770632056033,2.20797762,2046.2,2045.5,0.001]
[1770632056333,0.98615372,2046.0,2045.5,0.001]
[1770632057128,0.98615372,2046.0,2045.2,0.001]
[1770632057328,12.42486228,2046.1,2045.2,0.001]
[1770632057329,0.98615372,2045.8,2045.2,0.001]
[1770632058307,0.92655107,2045.6,2044.8,0.001]
[1770632058907,0.92655107,2045.3,2044.5,0.001]
[1770632059111,11.20300129,2045.4,2044.5,0.001]
[1770632059112,0.92655107,2045.1,2044.5,0.001]
[1770632060219,0.92655107,2045.1,2044.4,1.22284441]
[1770632060747,1.22249388,2045.0,2044.3,1.22287022]
[1770632061136,0.1024,2045.6,2044.4,0.95546219]
[1770632061137,0.92655107,2045.5,2044.4,0.95546219]
[1770632061445,0.92655107,2045.4,2044.4,0.95546219]
[1770632062148,0.92655107,2045.4,2044.3,1.22287022]
[1770632062351,0.92655107,2045.4,2044.3,2.17833241]
[1770632062845,4.63823874,2045.5,2044.4,0.95546219]
[1770632063054,5.56478981,2045.5,2044.4,0.95546219]
[1770632064738,4.63823874,2045.5,2044.5,1.22279285]
[1770632065036,0.92655107,2045.4,2044.5,1.22279285]
[1770632066528,0.92655107,2045.4,2044.5,1.22379285]
[1770632067030,1.22431457,2045.3,2044.5,1.22379285]
[1770632067637,1.22431457,2045.3,2044.5,0.001]
[1770632067638,0.92655107,2045.2,2044.5,0.001]
[1770632069118,1.22241767,2045.2,2044.5,0.001]
[1770632071043,2.14896874,2045.2,2044.5,0.001]
[1770632071950,0.92655107,2045.1,2044.5,0.001]
[1770632073351,5.14514601,2045.2,2044.5,0.001]
[1770632073657,0.25547701,2045.2,2044.5,0.95646219]
[1770632076236,0.25547701,2045.2,2044.6,1.22273305]
[1770632078838,0.25547701,2045.2,2044.6,2.17819524]
[1770632079160,0.002,2045.0,2044.6,2.17819524]
[1770632079361,0.002,2045.0,2044.6,1.22273305]
[1770632080156,0.002,2045.0,2044.5,0.001]
[1770632080366,0.92855107,2045.0,2044.5,0.001]
[1770632080774,0.002,2045.0,2044.5,0.001]
[1770632081061,0.002,2045.0,2044.5,0.95646219]
[1770632082163,0.002,2045.0,2044.6,1.22273305]
[1770632083868,0.002,2045.0,2044.5,1.22377383]
[1770632084077,0.002,2045.0,2044.5,2.17923602]
[1770632088872,0.002,2045.0,2044.5,1.22377383]
[1770632089046,0.002,2045.0,2044.5,0.001]
[1770632090164,0.91000747,2045.0,2044.5,0.001]
[1770632090779,0.91000747,2045.0,2044.3,0.001]
[1770632090976,2.13056114,2044.9,2044.7,0.001]
[1770632091271,1.22255367,2044.9,2044.3,0.001]
[1770632091467,2.13254001,2045.0,2044.3,0.001]
[1770632091679,1.22453254,2045.0,2044.3,0.94673073]
[1770632093072,0.002,2045.0,2044.5,0.94573073]
[1770632095677,0.002,2045.0,2044.6,1.22273305]
[1770632096252,0.002,2045.0,2044.3,0.001]
[1770632096253,0.90800747,2044.9,2044.3,0.001]
[1770632096448,0.90800747,2044.9,2044.0,0.001]
[1770632096652,0.90800747,2044.5,2043.7,0.001]
[1770632096983,0.90800747,2044.4,2043.4,0.001]
[1770632097277,0.90800747,2043.5,2042.7,1.22386911]
[1770632097476,0.90800747,2043.5,2042.0,8.55749541]
[1770632097477,0.90800747,2043.2,2042.0,0.2558068]
[1770632097679,0.90800747,2042.6,2041.0,0.94573073]
[1770632097977,0.90800747,2042.4,2041.2,1.22472728]
[1770632098298,0.90800747,2042.4,2041.4,1.22464451]
[1770632099174,0.90800747,2042.4,2040.3,4.90121008]
[1770632099380,0.90800747,2042.0,2040.9,4.89971479]
[1770632099553,0.90800747,2041.8,2040.6,4.90049868]
[1770632099874,0.90800747,2041.7,2040.5,1.2251899]
[1770632100277,2.13234092,2042.0,2040.6,0.94573073]
[1770632100577,1.22381045,2042.8,2041.3,0.94573073]
[1770632100883,5.55081548,2042.9,2041.3,0.94573073]
[1770632101074,0.90800747,2042.8,2041.3,0.94573073]
[1770632101375,2.13164548,2043.1,2041.8,1.01925293]
[1770632101874,0.90800747,2043.0,2041.9,1.22434987]
[1770632102603,1.22363801,2043.1,2041.5,1.2245594]